bitfinex/quotes_ETHUSD_20240618
["timestamp","ask_amount","ask_price","bid_price","bid_amount"]
[1718694563778,3.50189141,3448.7,3447.4,0.858]
[1718694563982,0.858,3448.4,3447.4,0.858]
[1718694564196,5.12080055,3448.7,3447.6,0.858]
[1718694564412,5.97880055,3448.7,3447.6,3.1571]
[1718694564583,5.47690914,3448.7,3447.6,3.1571]
[1718694564779,5.47690914,3448.7,3447.6,2.61481]
[1718694564780,0.858,3448.4,3447.6,2.61481]
[1718694565021,0.858,3448.4,3447.5,0.858]
[1718694566075,0.858,3448.4,3447.3,2.2991]
[1718694566290,0.858,3448.2,3447.3,2.2991]
[1718694566517,2.4979,3448.1,3447.3,0.2838202]
[1718694569929,0.858,3447.8,3447.0,0.539102]
[1718694570091,0.858,3447.6,3446.7,0.858]
[1718694570688,0.858,3447.6,3446.6,2.3407]
[1718694570918,0.858,3447.6,3446.7,0.858]
[1718694571298,0.858,3447.6,3446.8,0.858]
[1718694571507,3.0,3448.0,3446.9,0.31987]
[1718694571787,5.4979,3448.1,3446.9,0.31987]
[1718694573416,5.4979,3448.1,3447.1,2.2665]
[1718694573417,3.0,3448.1,3447.1,2.2665]
[1718694574991,7.43,3448.2,3447.2,0.05801306]
[1718694575222,7.43,3448.2,3447.3,0.58056447]
[1718694575388,8.2073,3448.7,3447.3,0.52255731]
[1718694575588,3.0,3448.6,3447.3,0.52255731]
[1718694576414,3.0,3448.6,3447.1,2.2665]
[1718694576612,2.317,3448.5,3447.1,2.2665]
[1718694577815,2.317,3448.5,3447.2,0.05801249]
[1718694578009,2.317,3448.5,3447.3,0.05800963]
[1718694578210,3.0,3448.6,3447.3,0.05800963]
[1718694578429,3.0,3448.6,3447.4,2.2901]
[1718694578728,3.0,3448.6,3447.5,0.5191]
[1718694579517,3.0,3448.6,3447.4,2.2901]
[1718694581733,3.0,3448.6,3447.5,0.05800737]
[1718694582737,3.0,3448.6,3447.4,2.2901]
[1718694583300,3.0,3448.6,3447.5,0.05800395]
[1718694587813,3.0,3448.6,3447.6,2.34]
[1718694588011,3.0,3448.6,3447.7,0.23980039]
[1718694590737,3.0,3448.6,3447.7,0.22748898]
[1718694591745,0.859,3448.5,3447.7,0.22748898]
[1718694593717,0.859,3448.3,3447.6,2.34]
[1718694593922,0.859,3448.5,3447.6,2.34]
[1718694595758,3.0,3448.6,3447.6,2.34]
[1718694595964,0.859,3448.4,3447.6,2.34]
[1718694596129,0.859,3448.4,3447.6,2.6599]
[1718694601477,3.0,3448.6,3448.0,0.859]
[1718694601682,0.859,3448.9,3448.1,2.3432]
[1718694602183,0.859,3448.7,3448.1,2.3432]
[1718694602353,0.859,3448.7,3448.1,2.66342]
[1718694602989,0.859,3448.7,3447.1,2.4883]
[1718694603147,3.1146,3448.5,3447.4,0.859]
[1718694603604,3.1146,3448.5,3447.5,2.4883]
[1718694606188,0.859,3448.5,3447.5,2.4883]
[1718694606360,0.859,3448.5,3447.6,0.859]
[1718694606560,0.859,3448.5,3447.8,2.3685]
[1718694608962,0.859,3448.5,3447.0,2.3951]
[1718694609273,0.859,3448.5,3447.5,2.3951]
[1718694610456,0.859,3448.3,3447.5,2.3951]
[1718694615199,0.859,3448.5,3447.5,2.3951]
[1718694615387,0.859,3448.5,3447.5,2.72051]
[1718694615872,0.859,3448.3,3447.5,2.72051]
[1718694616067,0.859,3447.9,3446.9,2.3658]
[1718694616292,0.859,3447.9,3446.9,3.2248]
[1718694616715,0.859,3447.9,3446.9,2.3658]
[1718694616899,0.859,3447.9,3447.0,0.526712]
[1718694618627,0.859,3447.7,3446.9,2.3658]
[1718694620194,0.859,3447.5,3446.6,0.859]
[1718694620394,0.859,3447.5,3446.6,3.3096]
[1718694622141,0.859,3447.5,3446.6,2.4506]
[1718694623859,2.2939,3447.4,3446.1,2.4765]
[1718694624002,0.859,3447.0,3446.1,3.3355]
[1718694624406,3.0,3447.3,3446.3,0.859]
[1718694624660,0.859,3447.3,3446.4,2.4159]
[1718694624812,3.859,3447.3,3446.4,2.4159]
[1718694625138,3.859,3447.3,3446.4,2.74339]
[1718694625340,3.0,3447.3,3446.4,2.74339]
[1718694625642,3.1529,3447.4,3446.5,0.859]
[1718694625815,3.0,3447.3,3446.5,0.859]
[1718694628033,3.0,3447.3,3446.4,2.74339]
[1718694628361,0.859,3447.2,3446.4,2.74339]
[1718694629368,0.859,3447.0,3446.4,2.4159]
[1718694630179,3.0,3447.3,3446.4,2.4159]
[1718694630472,0.859,3447.3,3446.5,0.859]
[1718694630646,3.859,3447.3,3446.5,0.859]
[1718694630953,3.859,3447.3,3446.5,1.18649]
[1718694632660,0.859,3447.3,3446.5,1.18649]
[1718694636715,0.859,3447.3,3446.6,2.2549]
[1718694637013,3.0,3447.6,3446.8,2.306]
[1718694637161,0.859,3447.5,3446.8,2.306]
[1718694642808,3.0,3447.8,3446.8,2.306]
[1718694643001,0.859,3447.6,3446.8,2.306]
[1718694643298,0.859,3447.4,3446.8,2.306]
[1718694644711,0.859,3447.6,3446.8,2.306]
[1718694647640,1.5449,3447.6,3446.8,2.306]
[1718694652936,0.859,3447.4,3445.8,2.2853]
[1718694653115,0.859,3447.2,3446.3,2.2853]
[1718694653316,0.859,3447.0,3446.3,2.2853]
[1718694654520,0.859,3447.0,3446.0,2.4379]
[1718694654837,3.2913,3447.0,3446.0,3.2969]
[1718694657841,0.859,3446.8,3446.0,3.2969]
[1718694658130,0.859,3446.8,3446.0,2.4379]
[1718694660366,2.4323,3447.0,3446.0,2.4379]
[1718694660568,0.859,3446.8,3446.0,2.4379]
[1718694661064,0.859,3446.8,3446.0,3.2969]
[1718694663771,3.0,3447.0,3446.1,2.41023471]
[1718694663974,0.859,3447.2,3446.3,2.3522]
[1718694664137,1.09320986,3447.2,3446.3,2.3522]
[1718694664340,4.36109856,3447.3,3446.3,2.3522]
[1718694664635,4.36109856,3447.3,3446.4,0.859]
[1718694665172,3.0,3447.2,3446.4,0.859]
[1718694665374,0.859,3447.3,3446.4,0.859]
[1718694666461,0.859,3447.3,3446.5,2.2863]
[1718694669672,3.0,3447.4,3446.5,2.60083]
[1718694669974,0.859,3447.3,3446.5,2.60083]
[1718694675567,3.0,3447.4,3446.7,2.3898]
[1718694675965,0.859,3447.6,3446.7,2.3898]
[1718694676161,0.859,3447.6,3446.7,2.746133]
[1718694679622,3.50205175,3447.8,3446.7,2.746133]
[1718694679913,0.859,3447.6,3446.7,2.746133]
[1718694680261,3.50205175,3447.8,3446.8,3.23451781]
[1718694680461,3.859,3447.8,3446.9,2.3175]
[1718694680791,2.96729475,3447.7,3447.0,0.35908508]
[1718694680988,2.10829475,3447.6,3447.0,0.35908508]
[1718694681706,2.10829475,3447.5,3447.0,0.35908508]
[1718694681894,2.10829475,3447.4,3447.0,0.35908508]
[1718694682093,2.10829475,3447.3,3447.1,0.35355851]
[1718694682292,2.10829475,3447.2,3447.1,0.35355851]
[1718694682873,2.10829475,3447.6,3447.1,0.35355851]
[1718694683073,2.10829475,3447.6,3446.9,2.3175]
[1718694685722,2.96729475,3447.6,3446.9,2.3175]
[1718694685887,2.10829475,3447.5,3446.9,2.3175]
[1718694691618,2.10829475,3447.4,3447.1,2.3669]
[1718694691799,2.10829475,3447.3,3447.1,2.3669]
[1718694691998,3.50197846,3447.8,3447.3,2.3669]
[1718694692242,2.10817521,3447.7,3447.3,2.3669]
[1718694692737,2.10817521,3447.6,3447.3,2.3669]
[1718694692901,2.10817521,3447.5,3447.3,2.3669]
[1718694693101,2.10817521,3447.4,3447.3,2.3669]
[1718694693528,2.10817521,3447.8,3447.3,2.3669]
[1718694694035,3.56389273,3447.8,3447.3,2.3669]
[1718694694224,2.10817521,3447.7,3447.3,2.3669]
[1718694703245,2.10817521,3447.7,3447.0,2.2593]
[1718694714927,2.10817521,3447.6,3447.0,2.2593]
[1718694715126,2.10817521,3447.5,3447.0,2.2593]
[1718694715450,2.10817521,3447.4,3447.1,0.31183]
[1718694715649,2.10817521,3447.3,3447.1,0.31183]
[1718694715966,3.0,3447.9,3447.1,0.31183]
[1718694715967,2.10817521,3447.2,3447.1,0.31183]
[1718694716158,2.10817521,3447.8,3447.0,2.2593]
[1718694716475,2.10817521,3447.7,3447.0,2.2593]
[1718694716658,2.10817521,3447.6,3447.0,2.2593]
[1718694716823,2.10817521,3447.5,3447.0,2.2593]
[1718694717024,2.10817521,3447.4,3447.0,2.2593]
[1718694717223,2.10817521,3447.3,3447.0,2.2593]
[1718694717530,2.10817521,3447.2,3447.0,2.2593]
[1718694717730,2.10817521,3447.1,3447.0,2.2593]
[1718694717937,2.10817521,3447.8,3447.0,2.57113]
[1718694718267,2.10817521,3447.7,3447.0,2.2593]
[1718694718472,2.10817521,3447.6,3447.0,2.2593]
[1718694718767,2.10817521,3447.5,3447.0,2.2593]
[1718694718972,2.10817521,3447.4,3446.2,2.4936]
[1718694719270,0.859,3447.1,3446.2,2.4936]
[1718694719478,2.10817521,3447.0,3446.2,2.4936]
[1718694719955,2.10817521,3447.0,3446.3,0.859]
[1718694720531,0.859,3446.9,3446.2,2.4936]
[1718694720777,0.859,3446.7,3445.7,0.6090468]
[1718694720952,2.10817521,3446.6,3445.7,1.4680468]
[1718694721132,2.10817521,3446.5,3445.7,1.4680468]
[1718694721338,2.10817521,3446.4,3445.7,0.859]
[1718694721539,2.10817521,3446.3,3445.6,2.3395]
[1718694721746,2.10817521,3446.2,3445.6,2.7257117]
[1718694722041,2.10817521,3446.1,3445.6,2.7257117]
[1718694722369,2.10817521,3446.0,3445.7,0.859]
[1718694722576,8.289,3446.7,3445.7,0.859]
[1718694722738,2.10892819,3446.6,3445.7,0.859]
[1718694723286,2.40572101,3446.6,3445.7,0.859]
[1718694723494,2.10892819,3446.5,3445.7,0.859]
[1718694724781,4.21791021,3446.5,3445.7,0.859]
[1718694724984,2.10892819,3446.4,3445.7,0.859]
[1718694725188,2.10898202,3446.3,3445.7,0.859]
[1718694725554,4.21790884,3446.2,3445.7,0.859]
[1718694725903,2.10898202,3446.1,3445.7,0.859]
[1718694726059,2.4896,3446.5,3445.7,0.859]
[1718694726394,4.21793597,3446.4,3445.7,0.859]
[1718694726562,4.21793597,3446.3,3445.7,0.859]
[1718694726898,2.10899063,3446.2,3445.7,0.859]
[1718694727094,2.4896,3446.5,3445.7,0.859]
[1718694727396,4.21793465,3446.4,3445.7,0.859]
[1718694727559,4.21793465,3446.3,3445.7,0.859]
[1718694727760,2.4896,3446.5,3445.6,2.7257117]
[1718694728098,4.21795662,3446.4,3445.7,0.859]
[1718694728280,2.10900372,3446.4,3445.7,0.859]
[1718694728597,2.10900372,3446.3,3445.7,0.51073287]
[1718694728804,2.4896,3446.5,3445.7,1.36973287]
[1718694728985,4.21796558,3446.4,3445.7,1.36973287]
[1718694729171,2.4896,3446.5,3445.7,1.36973287]
[1718694729366,4.21795894,3446.4,3445.7,1.36973287]
[1718694729696,4.21795894,3446.3,3445.7,1.36973287]
[1718694729856,2.4896,3446.5,3445.7,1.36973287]
[1718694730053,4.21806066,3446.4,3445.7,1.36973287]
[1718694730280,2.4896,3446.5,3445.7,1.36973287]
[1718694730483,4.21805737,3446.4,3445.7,1.36973287]
[1718694730670,2.4896,3446.5,3445.7,1.36973287]
[1718694730865,4.21805544,3446.4,3445.7,1.36973287]
[1718694731096,2.4896,3446.5,3445.7,1.36973287]
[1718694731300,2.10901522,3446.4,3445.7,1.36973287]
[1718694731492,2.10901522,3446.4,3445.7,0.51073287]
[1718694731803,2.10901522,3446.4,3445.6,2.3395]
[1718694734166,0.859,3446.3,3445.5,2.3696]
[1718694736716,0.859,3446.3,3445.5,3.2286]
[1718694737496,2.4896,3446.5,3445.5,3.2286]
[1718694737701,2.96816644,3446.4,3445.5,3.55146]
[1718694737871,0.859,3446.4,3445.5,3.2286]
[1718694738071,3.859,3446.4,3445.5,3.2286]
[1718694738286,2.10922945,3446.3,3445.5,3.2286]
[1718694739299,3.859,3446.4,3445.5,2.3696]
[1718694740501,2.4868,3446.3,3445.4,0.859]
[1718694741425,0.859,3446.1,3445.2,2.2927]
[1718694742683,0.859,3445.9,3445.2,2.2927]
[1718694743704,0.859,3445.9,3444.7,2.3488]
[1718694743907,0.859,3445.9,3444.9,0.859]
[1718694744101,1.18777,3445.9,3444.9,0.859]
[1718694744928,1.18777,3445.9,3444.7,2.3488]
[1718694745225,1.18777,3445.9,3444.9,0.859]
[1718694747338,1.18777,3445.9,3445.1,0.859]
[1718694747628,1.18777,3445.9,3445.0,3.1768]
[1718694747790,1.18777,3445.9,3445.0,2.3178]
[1718694747991,0.361647,3445.8,3445.0,3.1768]
[1718694749827,0.361647,3445.8,3445.0,2.3178]
[1718694754408,0.859,3445.7,3444.9,0.859]
[1718694755537,2.4643,3445.6,3444.9,0.859]
[1718694755722,2.4643,3445.6,3444.8,2.2595]
[1718694755929,2.4643,3445.6,3444.8,3.1185]
[1718694756296,2.4643,3445.6,3444.8,2.2595]
[1718694756499,2.4643,3445.6,3444.8,3.1185]
[1718694757230,2.4643,3445.6,3444.8,3.720664]
[1718694758140,2.4643,3445.6,3444.8,2.861664]
[1718694759336,2.3697,3446.1,3445.1,0.859]
[1718694759543,2.3697,3446.3,3445.7,0.859]
[1718694759842,3.00142266,3447.6,3445.7,0.859]
[1718694759843,2.3697,3446.7,3445.9,0.859]
[1718694760148,5.93,3447.5,3445.9,0.859]
[1718694760149,1.36127625,3446.9,3446.0,2.52043255]
[1718694760305,1.36127625,3446.9,3446.1,0.859]
[1718694760306,0.50227625,3446.9,3446.1,0.859]
[1718694760504,9.7106,3447.1,3446.1,0.91703059]
[1718694760505,0.859,3447.0,3446.1,0.91703059]
[1718694760733,1.91596,3447.0,3446.1,0.91703059]
[1718694761036,0.50227625,3447.0,3446.5,0.859]
[1718694761242,0.859,3447.3,3446.5,0.859]
[1718694761429,2.10852981,3447.2,3446.5,0.859]
[1718694761635,2.10852981,3447.2,3446.1,0.05803059]
[1718694761636,2.10852981,3447.2,3446.3,0.859]
[1718694761803,2.10852981,3447.2,3446.4,0.05802553]
[1718694763437,2.10852981,3447.2,3446.0,2.4624]
[1718694763438,0.859,3447.1,3446.0,2.4624]
[1718694763638,0.859,3446.9,3445.7,0.31298]
[1718694763848,2.1087899,3446.8,3445.9,0.859]
[1718694764006,0.859,3446.7,3445.9,0.859]
[1718694764207,0.859,3446.7,3445.9,1.208648]
[1718694764518,2.10885445,3446.6,3445.9,1.208648]
[1718694767340,0.859,3446.8,3445.9,1.208648]
[1718694767545,2.10880474,3446.7,3445.9,1.208648]
[1718694769028,2.10880474,3446.7,3445.9,0.349648]
[1718694769215,2.10880474,3446.7,3446.1,2.3465]
[1718694769417,0.859,3447.1,3446.1,2.3465]
[1718694769629,2.10869677,3447.0,3446.1,2.3465]
[1718694769950,0.859,3447.1,3446.2,0.91702707]
[1718694770310,2.10865515,3447.0,3446.2,0.91702707]
[1718694770534,2.10865515,3447.0,3446.3,0.32635271]
[1718694771862,2.10865515,3446.9,3446.3,0.32635271]
[1718694772151,2.10865515,3446.8,3446.3,0.3843798]
[1718694772336,0.859,3447.3,3446.4,0.859]
[1718694772515,2.10860375,3447.2,3446.4,1.21798798]
[1718694772710,5.10860375,3447.2,3446.4,1.21798798]
[1718694773013,5.10860375,3447.2,3446.4,0.35898798]
[1718694773014,3.0,3447.2,3446.4,0.35898798]
[1718694773216,0.859,3447.3,3446.4,0.35898798]
[1718694774325,0.859,3447.1,3446.4,0.35898798]
[1718694774929,3.0,3447.4,3446.4,0.35898798]
[1718694775117,0.859,3447.2,3446.4,0.35898798]
[1718694776955,0.859,3447.2,3446.2,0.859]
[1718694777770,0.859,3447.0,3445.5,2.3287]
[1718694777966,3.1664,3446.8,3445.5,2.3287]
[1718694778133,0.859,3446.6,3445.5,2.3287]
[1718694778330,0.31664,3446.5,3445.6,0.859]
[1718694778556,0.859,3446.4,3445.6,0.859]
[1718694779644,0.31664,3446.5,3445.6,0.859]
[1718694780336,3.0,3446.7,3445.6,0.859]
[1718694780540,0.859,3446.7,3445.6,0.859]
[1718694780849,3.859,3446.7,3445.6,0.859]
[1718694781274,3.859,3446.7,3445.2,2.3287]
[1718694781275,2.3074,3446.6,3445.2,2.3287]
[1718694781485,0.859,3446.3,3445.4,0.859]
[1718694781765,0.859,3446.3,3445.4,1.17777]
[1718694784085,2.4912,3446.0,3445.2,2.3287]
[1718694784374,2.4912,3446.0,3445.0,0.859]
[1718694784762,0.859,3445.9,3444.7,2.351]
[1718694785071,0.859,3445.9,3445.0,0.859]
[1718694785231,0.33502,3445.8,3445.0,0.859]
[1718694785867,0.859,3445.9,3445.0,0.859]
[1718694786596,0.859,3445.9,3444.7,2.351]
[1718694786775,0.859,3445.9,3445.0,0.859]
[1718694790382,3.0,3446.2,3445.4,0.859]
[1718694790585,3.0,3446.1,3445.6,0.859]
[1718694790769,3.0,3446.3,3445.6,0.859]
[1718694790973,3.50222699,3446.4,3445.6,0.859]
[1718694795395,0.859,3446.3,3445.4,0.859]
[1718694795554,0.859,3446.3,3445.4,0.91704211]
[1718694795750,3.50222699,3446.4,3445.4,0.91704211]
[1718694796054,3.0,3446.4,3445.6,0.859]
[1718694796287,0.9847527,3446.4,3445.6,0.859]
[1718694797995,3.0,3446.5,3445.6,0.859]
[1718694798191,0.859,3446.5,3445.6,0.859]
[1718694798490,3.859,3446.5,3445.6,0.859]
[1718694804764,3.0,3446.5,3445.3,3.1657]
[1718694804963,0.859,3446.2,3445.3,3.1657]
[1718694805413,0.859,3446.2,3445.3,2.3067]
[1718694805700,2.269,3446.1,3445.2,0.859]
[1718694806058,5.269,3446.1,3445.2,0.859]
[1718694806494,0.859,3446.0,3445.2,0.859]
[1718694806673,1.4718,3446.0,3445.2,0.859]
[1718694807688,0.859,3445.8,3444.8,3.1273]
[1718694808061,0.859,3445.8,3445.0,0.859]
[1718694809483,4.4718,3446.0,3445.0,0.859]
[1718694813962,4.4718,3446.0,3444.8,2.2683]
[1718694814270,4.4718,3446.0,3445.0,0.859]
[1718694817124,4.4718,3446.0,3444.9,0.22683]
[1718694817333,4.4718,3446.0,3445.0,0.859]
[1718694819406,4.4718,3446.0,3444.9,0.22683]
[1718694819608,4.4718,3446.0,3445.0,0.859]
[1718694819923,0.67408,3445.9,3445.0,0.859]
[1718694820608,3.859,3446.0,3445.0,0.859]
[1718694821424,3.859,3446.0,3445.2,0.859]
[1718694821658,3.0,3446.0,3445.5,0.859]
[1718694821827,3.0,3446.0,3445.7,0.859]
[1718694822336,7.43,3446.4,3445.7,0.859]
[1718694822337,3.0,3446.3,3445.7,0.859]
[1718694823005,3.0,3446.3,3445.6,2.3964]
[1718694823200,4.92063214,3446.3,3445.5,0.859]
[1718694823402,4.41847565,3446.3,3445.5,0.859]
[1718694823607,4.9206682,3446.3,3445.5,0.859]
[1718694825343,3.50219255,3446.3,3445.5,0.859]
[1718694825926,0.859,3446.4,3445.5,0.859]
[1718694828218,2.4272,3446.3,3445.5,0.859]
[1718694828427,5.4272,3446.3,3445.5,0.859]
[1718694829310,0.859,3446.2,3445.3,2.3543]
[1718694829508,3.859,3446.2,3445.3,3.2133]
[1718694829708,4.48762,3446.2,3445.3,3.2133]
[1718694832115,4.48762,3446.2,3445.3,0.859]
[1718694832323,2.2699,3446.1,3445.3,0.859]
[1718694832628,5.2699,3446.1,3445.3,0.859]
[1718694832836,2.10932845,3446.0,3445.3,0.859]
[1718694833013,2.93315129,3445.9,3445.3,0.859]
[1718694833212,2.10932845,3445.8,3445.3,0.859]
[1718694833740,2.10932845,3445.8,3445.1,0.859]
[1718694834311,5.10932845,3445.8,3445.1,0.859]
[1718694834512,2.10932845,3445.7,3445.1,0.859]
[1718694839957,2.78854358,3445.7,3445.1,0.859]
[1718694840143,2.78854358,3445.7,3444.8,2.3682]
[1718694840144,4.36892845,3445.6,3445.0,0.859]
[1718694840466,2.10932845,3445.5,3445.0,0.859]
[1718694842351,2.10932845,3445.5,3444.8,2.3682]
[1718694842549,2.10932845,3445.5,3445.0,0.859]
[1718694843250,2.10932845,3445.5,3444.8,2.3682]
[1718694843456,2.10932845,3445.5,3444.9,0.859]
[1718694844483,2.10932845,3445.5,3445.1,0.859]
[1718694845753,2.10932845,3445.4,3445.1,0.859]
[1718694845952,2.10932845,3445.3,3445.1,0.859]
[1718694846154,2.10932845,3445.2,3445.1,1.18752494]
[1718694846574,2.10932845,3445.7,3445.1,1.18752494]
[1718694848189,2.10932845,3445.6,3445.1,1.18752494]
[1718694848476,5.3318,3445.8,3445.1,1.18752494]
[1718694848477,2.10932845,3445.5,3445.1,0.859]
[1718694848682,2.10932845,3445.4,3445.1,0.859]
[1718694848847,2.10932845,3445.3,3445.1,0.859]
[1718694849039,2.10932845,3445.2,3445.1,0.859]
[1718694849857,2.10932845,3445.7,3445.1,0.859]
[1718694850057,2.10932845,3445.6,3445.1,0.859]
[1718694850258,2.10932845,3445.5,3445.1,0.859]
[1718694850480,2.10932845,3445.4,3445.3,0.859]
[1718694850782,2.10932845,3445.4,3445.3,3.1483]
[1718694851482,2.10932845,3445.7,3445.3,3.1483]
[1718694851786,2.10927616,3445.6,3445.3,3.1483]
[1718694852088,2.10927616,3445.5,3445.3,3.1483]
[1718694852289,2.10927616,3445.4,3445.3,3.46313]
[1718694853186,2.10927616,3445.4,3445.3,3.1483]
[1718694853387,2.10927616,3445.7,3445.3,3.1483]
[1718694853691,2.10927616,3445.6,3445.3,3.1483]
[1718694853890,2.10927616,3445.5,3445.3,3.1483]
[1718694854097,3.0,3445.8,3445.3,3.1483]
[1718694854259,2.10929974,3445.7,3445.3,3.1483]
[1718694854458,2.10929974,3445.6,3445.3,3.1483]
[1718694854659,2.10929974,3445.5,3445.3,3.1483]
[1718694854895,2.10929974,3445.4,3445.3,3.1483]
[1718694855580,2.10929974,3445.7,3445.3,3.1483]
[1718694855783,2.10929974,3445.6,3445.3,3.1483]
[1718694855989,2.10929974,3445.5,3445.3,3.1483]
[1718694856175,2.10929974,3445.4,3445.3,3.1483]
[1718694856357,2.10929974,3445.9,3445.3,3.1483]
[1718694856562,2.10929974,3445.8,3445.3,3.1483]
[1718694856767,2.10929974,3445.7,3445.3,3.1483]
[1718694856971,2.10929974,3445.6,3445.3,3.1483]
[1718694857183,2.10929974,3445.5,3445.3,3.1483]
[1718694857382,2.10929974,3445.4,3445.3,3.1483]
[1718694857595,2.10929974,3445.9,3445.3,3.1483]
[1718694857785,2.10929974,3445.8,3445.3,3.1483]
[1718694858084,2.10929974,3445.7,3445.3,3.1483]
[1718694858288,2.10929974,3445.6,3445.5,0.859]
[1718694858495,2.10929974,3445.9,3445.5,0.859]
[1718694858711,2.10929974,3445.8,3445.5,0.859]
[1718694858881,2.10929974,3445.7,3445.5,0.859]
[1718694859216,2.10929974,3445.6,3445.5,0.859]
[1718694859770,2.10929974,3445.9,3445.5,0.859]
[1718694859971,2.10929974,3445.8,3445.5,0.859]
[1718694860172,2.10929974,3445.7,3445.5,0.859]
[1718694860410,2.10929974,3445.6,3445.5,0.859]
[1718694860610,2.10929974,3445.9,3445.5,0.859]
[1718694860808,2.10929974,3445.8,3445.5,0.859]
[1718694860969,2.10929974,3445.7,3445.5,0.859]
[1718694861175,2.10929974,3445.6,3445.5,0.859]
[1718694861368,2.10929974,3445.6,3445.3,2.2893]
[1718694861369,2.10929974,3445.9,3445.3,0.859]
[1718694861610,2.10929974,3445.8,3445.3,0.859]
[1718694861812,2.10929974,3445.7,3445.3,0.859]
[1718694862015,2.10929974,3445.6,3445.3,0.859]
[1718694862328,2.10929974,3445.5,3445.3,0.859]
[1718694862606,2.10929974,3445.4,3445.3,0.859]
[1718694862971,3.0,3446.0,3445.3,0.859]
[1718694862972,2.10929974,3445.9,3445.3,0.859]
[1718694863178,2.10929974,3445.8,3445.3,0.859]
[1718694863379,2.10929974,3445.7,3445.3,0.859]
[1718694863608,2.10929974,3445.6,3445.3,0.859]
[1718694863939,2.10929974,3445.5,3445.3,0.859]
[1718694864080,2.10929974,3445.4,3445.3,0.859]
[1718694864385,2.10929974,3445.7,3445.3,0.859]
[1718694864581,2.10929974,3445.6,3445.3,0.859]
[1718694864781,2.10929974,3445.5,3445.3,0.859]
[1718694864992,2.10929974,3445.4,3445.3,0.859]
[1718694865615,2.10929974,3445.7,3445.3,0.859]
[1718694865914,2.10929974,3445.6,3445.3,0.859]
[1718694866075,2.10929974,3445.5,3445.3,0.859]
[1718694866280,2.10929974,3445.4,3445.3,0.859]
[1718694866687,2.10929974,3445.7,3445.3,0.859]
[1718694866903,2.10929974,3445.6,3445.3,0.859]
[1718694867109,2.10929974,3445.6,3445.2,0.859]
[1718694867815,2.10929974,3445.5,3445.2,0.859]
[1718694868014,2.10929974,3445.4,3445.2,0.859]
[1718694868201,2.10929974,3445.3,3445.2,0.859]
[1718694868518,2.4745,3445.8,3445.2,0.859]
[1718694868707,2.86767971,3445.7,3445.2,0.859]
[1718694868909,2.10929974,3445.6,3445.2,0.859]
[1718694869208,2.10929974,3445.5,3445.2,0.859]
[1718694869407,2.10929974,3445.4,3445.2,0.859]
[1718694869607,2.10929974,3445.3,3445.2,0.859]
[1718694869988,2.10929974,3445.7,3445.2,0.859]
[1718694870194,2.10929974,3445.6,3445.2,0.859]
[1718694870410,2.10929974,3445.5,3445.2,0.859]
[1718694870621,2.4745,3445.8,3445.2,0.859]
[1718694870622,2.10929974,3445.4,3445.2,0.859]
[1718694870783,2.10929974,3445.3,3445.0,0.859]
[1718694870983,2.10929974,3445.2,3445.0,0.859]
[1718694871215,2.10929974,3445.1,3445.0,0.859]
[1718694871517,2.10929974,3445.7,3445.0,0.859]
[1718694871701,2.10929974,3445.6,3445.0,0.859]
[1718694871900,2.10929974,3445.5,3445.0,0.859]
[1718694872096,2.10929974,3445.4,3445.0,0.859]
[1718694872338,2.10929974,3445.3,3445.2,0.859]
[1718694872499,2.10929974,3445.7,3445.2,0.859]
[1718694872700,2.10929974,3445.6,3445.2,0.859]
[1718694872938,2.10929974,3445.5,3445.2,0.859]
[1718694873238,2.10929974,3445.4,3445.2,0.859]
[1718694873423,2.10929974,3445.3,3445.2,0.859]
[1718694874542,2.10929974,3445.9,3445.2,0.859]
[1718694874702,2.10929974,3445.8,3445.2,0.859]
[1718694874907,2.10929974,3445.7,3445.2,0.859]
[1718694875105,2.10929974,3445.6,3445.2,0.859]
[1718694875306,2.10929974,3445.5,3445.2,0.859]
[1718694875540,2.10927575,3445.4,3445.2,0.859]
[1718694875725,2.10927575,3445.3,3445.2,0.859]
[1718694876035,2.10927575,3445.9,3445.2,0.859]
[1718694876201,2.10927575,3445.8,3445.2,0.859]
[1718694876401,2.10927575,3445.7,3445.2,0.859]
[1718694876602,2.10927575,3445.6,3445.2,0.859]
[1718694876817,2.10927575,3445.5,3445.2,0.859]
[1718694877003,2.10927575,3445.4,3445.2,0.859]
[1718694877237,2.10927575,3445.3,3445.2,1.17663478]
[1718694877439,2.10927575,3445.9,3445.2,1.17663478]
[1718694877640,2.10927575,3445.8,3445.2,0.859]
[1718694877813,2.10927575,3445.7,3445.2,0.859]
[1718694878018,2.10927575,3445.6,3445.2,0.859]
[1718694878338,2.10927575,3445.5,3445.2,0.859]
[1718694878641,2.10927575,3445.4,3445.2,0.859]
[1718694878843,3.0,3446.0,3445.3,0.31183]
[1718694879018,2.109217,3445.9,3445.2,0.859]
[1718694879212,2.109217,3445.8,3445.5,2.4868]
[1718694879518,2.109217,3445.7,3445.5,2.4868]
[1718694879835,2.109217,3445.6,3445.5,2.4868]
[1718694880525,2.109217,3445.9,3445.5,2.4868]
[1718694880725,2.109217,3445.8,3445.5,2.4868]
[1718694880917,2.109217,3445.7,3445.5,2.4868]